[Event "ETCC Women 2013"]
[Site "Warsaw"]
[Date "2013.11.15"]
[Round "7"]
[White "Melamed, Tatjana"]
[Black "Videnova, Iva"]
[Result "1/2-1/2"]
[ECO "C78"]
[WhiteElo "2367"]
[BlackElo "2272"]
[PlyCount "126"]
[EventDate "2013.??.??"]
[EventCountry "POL"]
[WhiteTeam "Germany"]
[BlackTeam "Bulgaria"]
[WhiteTeamCountry "GER"]
[BlackTeamCountry "BUL"]
[TimeControl "40/5400+30:1800+30"]

1. e4 {[%emt 0:00:00]} e5 {[%emt 0:00:00]} 2. Nf3 {[%emt 0:00:00]} Nc6 {[%emt
0:00:00]} 3. Bb5 {[%emt 0:00:00]} a6 {[%emt 0:00:00]} 4. Ba4 {[%emt 0:00:09]}
Nf6 {[%emt 0:00:00]} 5. O-O {[%emt 0:00:21]} b5 {[%emt 0:00:00]} 6. Bb3 Bb7 {
[%emt 0:00:00]} 7. d3 {[%emt 0:05:17]} Be7 {[%emt 0:00:24]} 8. a4 {[%emt 0:01:
48]} O-O 9. Nc3 Na5 {[%emt 0:02:34]} 10. Ba2 {[%emt 0:12:56]} b4 {[%emt 0:01:
50]} 11. Nd5 {[%emt 0:08:14]} Nxd5 {[%emt 0:01:59]} 12. Bxd5 {[%emt 0:01:18]}
d6 {[%emt 0:10:13]} 13. Bxb7 {[%emt 0:11:50]} Nxb7 {[%emt 0:00:10]} 14. d4 {
[%emt 0:00:17]} exd4 {[%emt 0:17:16]} 15. Qxd4 {[%emt 0:12:23]} a5 {[%emt 0:01:
09]} 16. Qd5 {[%emt 0:03:16]} Nc5 {[%emt 0:20:33]} 17. Be3 {[%emt 0:00:51]} Ne6
{[%emt 0:00:43]} 18. Rad1 {[%emt 0:02:02]} Bf6 {[%emt 0:03:37]} 19. b3 {[%emt
0:00:37]} Qc8 {[%emt 0:01:08]} 20. Nd2 {[%emt 0:02:17]} Rd8 {[%emt 0:06:27]}
21. Nc4 {[%emt 0:01:42]} Qa6 {[%emt 0:00:10]} 22. f4 {[%emt 0:07:09]} c5 {
[%emt 0:00:56]} 23. Kh1 {[%emt 0:05:51]} Bd4 {[%emt 0:00:57]} 24. Bxd4 {[%emt
0:02:50]} Nxd4 {[%emt 0:00:24]} 25. f5 {[%emt 0:00:35]} h6 {[%emt 0:10:30]} 26.
Rd3 {[%emt 0:04:09]} Ra7 {[%emt 0:12:03]} 27. e5 {[%emt 0:07:01]} Qb7 {[%emt 0:
01:26]} 28. Qxb7 {[%emt 0:00:31]} Rxb7 {[%emt 0:00:05]} 29. Nxd6 {[%emt 0:00:
47]} Re7 {[%emt 0:00:52]} 30. Nc4 {[%emt 0:00:19]} Rd5 {[%emt 0:00:56]} 31. g4
{[%emt 0:00:42]} Rdd7 {[%emt 0:03:23]} 32. Rf2 {[%emt 0:00:22]} Nc6 {[%emt 0:
01:11]} 33. Rxd7 {[%emt 0:07:43]} Rxd7 {[%emt 0:00:05]} 34. Kg2 {[%emt 0:00:18]
} Rd4 {[%emt 0:03:26]} 35. Kf3 {[%emt 0:00:37]} Kf8 {[%emt 0:00:47]} 36. h3 {
[%emt 0:00:14]} Rd1 {[%emt 0:00:54]} 37. Ke4 {[%emt 0:01:00]} Rd4+ {[%emt 0:00:
08]} 38. Ke3 {[%emt 0:00:05]} Rd1 {[%emt 0:00:28]} 39. Rd2 {[%emt 0:01:04]}
Re1+ {[%emt 0:00:50]} 40. Kf4 {[%emt 0:00:00]} Ke7 {[%emt 0:00:00]} 41. Rd5 {
[%emt 0:08:49]} Nd4 {[%emt 0:04:08]} 42. Nxa5 {[%emt 0:01:37]} g5+ {[%emt 0:05:
56]} 43. fxg6 {[%emt 0:03:56]} fxg6 {[%emt 0:00:28]} 44. Rd6 {[%emt 0:04:42]}
Ne6+ {[%emt 0:01:23]} 45. Kg3 {[%emt 0:02:37]} Rxe5 {[%emt 0:01:32]} 46. Nc4 {
[%emt 0:00:42]} Re2 {[%emt 0:00:59]} 47. Rd2 {[%emt 0:01:21]} Re1 {[%emt 0:04:
07]} 48. Kf2 {[%emt 0:01:51]} Rh1 {[%emt 0:00:28]} 49. Kg2 {[%emt 0:02:34]} Re1
{[%emt 0:00:43]} 50. a5 {[%emt 0:00:57]} Ra1 {[%emt 0:01:33]} 51. Rd6 {[%emt 0:
00:55]} Ra2 {[%emt 0:00:48]} 52. Rb6 {[%emt 0:01:30]} Rxc2+ {[%emt 0:01:31]}
53. Kf1 {[%emt 0:00:18]} Nd4 {[%emt 0:02:06]} 54. a6 {[%emt 0:00:38]} Ra2 {
[%emt 0:00:20]} 55. Rxg6 {[%emt 0:00:45]} Ne6 {[%emt 0:01:24]} 56. Rxh6 {[%emt
0:02:04]} Rxa6 {[%emt 0:00:15]} 57. Rh7+ {[%emt 0:01:33]} Kf6 {[%emt 0:00:25]}
58. Rh6+ {[%emt 0:01:02]} Kg5 {[%emt 0:01:49]} 59. Rh5+ {[%emt 0:01:46]} Kf4 {
[%emt 0:01:05]} 60. Rd5 {[%emt 0:02:27]} Nd4 {[%emt 0:03:04]} 61. Rxc5 {[%emt
0:00:43]} Ra1+ {[%emt 0:00:32]} 62. Kf2 {[%emt 0:00:13]} Ra2+ {[%emt 0:00:21]}
63. Ke1 {[%emt 0:00:17]} Ra1+ {[%emt 0:00:16]} 1/2-1/2

[Event "ETCC Women 2013"]
[Site "Warsaw"]
[Date "2013.11.15"]
[Round "7"]
[White "Milliet, Sophie"]
[Black "Kopinits, Anna-Christina"]
[Result "0-1"]
[ECO "C91"]
[WhiteElo "2383"]
[BlackElo "2263"]
[PlyCount "134"]
[EventDate "2013.??.??"]
[EventCountry "POL"]
[WhiteTeam "France"]
[BlackTeam "Austria"]
[WhiteTeamCountry "FRA"]
[BlackTeamCountry "AUT"]
[TimeControl "40/5400+30:1800+30"]

1. e4 {[%emt 0:00:00]} e5 {[%emt 0:00:00]} 2. Nf3 {[%emt 0:00:00]} Nc6 {[%emt
0:00:00]} 3. Bb5 {[%emt 0:00:08]} a6 {[%emt 0:00:00]} 4. Ba4 {[%emt 0:00:04]}
Nf6 {[%emt 0:00:06]} 5. O-O {[%emt 0:00:05]} b5 {[%emt 0:00:32]} 6. Bb3 {[%emt
0:00:06]} Be7 {[%emt 0:00:06]} 7. Re1 {[%emt 0:02:02]} d6 {[%emt 0:00:15]} 8.
c3 {[%emt 0:00:25]} O-O {[%emt 0:00:26]} 9. d4 {[%emt 0:00:23]} Bg4 {[%emt 0:
00:23]} 10. Be3 {[%emt 0:00:08]} exd4 {[%emt 0:01:20]} 11. cxd4 {[%emt 0:00:05]
} d5 {[%emt 0:00:20]} 12. e5 {[%emt 0:00:32]} Ne4 {[%emt 0:00:14]} 13. Nbd2 {
[%emt 0:02:42]} Nxd2 {[%emt 0:03:11]} 14. Qxd2 {[%emt 0:00:42]} Bxf3 {[%emt 0:
16:29]} 15. Rec1 {[%emt 0:09:59]} Bb4 {[%emt 0:15:53]} 16. Qc2 {[%emt 0:01:38]}
Nxd4 {[%emt 0:01:21]} 17. Bxd4 {[%emt 0:01:01]} Qg5 {[%emt 0:06:34]} 18. g3 {
[%emt 0:00:05]} Bd2 {[%emt 0:07:06]} 19. Rd1 {[%emt 0:05:07]} Bxd1 {[%emt 0:11:
38]} 20. Rxd1 {[%emt 0:00:01]} Ba5 {[%emt 0:01:07]} 21. Bxd5 {[%emt 0:02:42]}
Rad8 {[%emt 0:01:35]} 22. Qb3 {[%emt 0:23:40]} Bb6 {[%emt 0:04:33]} 23. Bxb6 {
[%emt 0:02:26]} cxb6 {[%emt 0:00:14]} 24. Re1 {[%emt 0:02:02]} g6 {[%emt 0:12:
12]} 25. Qf3 {[%emt 0:01:14]} Kg7 {[%emt 0:02:34]} 26. h4 {[%emt 0:00:28]} Qe7
{[%emt 0:01:05]} 27. Kg2 {[%emt 0:01:05]} Rd7 {[%emt 0:01:39]} 28. Bb3 {[%emt
0:03:53]} h5 {[%emt 0:01:21]} 29. Qc6 {[%emt 0:04:42]} Qd8 {[%emt 0:05:05]} 30.
e6 {[%emt 0:01:42]} Re7 {[%emt 0:00:21]} 31. Rd1 {[%emt 0:11:25]} Qa8 {[%emt 0:
02:03]} 32. Qxa8 {[%emt 0:00:06]} Rxa8 {[%emt 0:00:03]} 33. exf7 {[%emt 0:00:
05]} Re2 {[%emt 0:02:57]} 34. Rd7 {[%emt 0:00:36]} Rb8 {[%emt 0:01:31]} 35. Kf3
{[%emt 0:01:21]} Rxb2 {[%emt 0:00:07]} 36. Re7 {[%emt 0:00:00]} Kf8 {[%emt 0:
00:41]} 37. Re6 {[%emt 0:00:43]} Kxf7 {[%emt 0:02:19]} 38. Re2+ {[%emt 0:00:26]
} Rxb3+ {[%emt 0:00:02]} 39. axb3 {[%emt 0:00:00]} a5 {[%emt 0:00:50]} 40. Kf4
{[%emt 0:00:00]} Rc8 {[%emt 0:00:00]} 41. Kg5 {[%emt 0:04:28]} Rc5+ {[%emt 0:
07:12]} 42. Kh6 {[%emt 0:00:07]} Kf6 {[%emt 0:02:36]} 43. Re8 {[%emt 0:11:07]}
Rc6 {[%emt 0:01:55]} 44. f4 {[%emt 0:05:30]} b4 {[%emt 0:03:10]} 45. Rf8+ {
[%emt 0:07:01]} Ke7 {[%emt 0:02:44]} 46. Ra8 {[%emt 0:00:08]} Rc3 {[%emt 0:03:
29]} 47. Ra6 {[%emt 0:04:07]} Rxb3 {[%emt 0:01:41]} 48. Rxb6 {[%emt 0:00:11]}
a4 {[%emt 0:00:25]} 49. Rxg6 {[%emt 0:00:30]} a3 {[%emt 0:01:06]} 50. Ra6 {
[%emt 0:00:09]} Rxg3 {[%emt 0:01:33]} 51. Ra4 {[%emt 0:04:40]} Rg1 {[%emt 0:01:
35]} 52. Kxh5 {[%emt 0:02:41]} b3 {[%emt 0:06:19]} 53. Ra7+ {[%emt 0:01:04]}
Kf6 {[%emt 0:00:05]} 54. Ra6+ {[%emt 0:00:13]} Kf5 {[%emt 0:00:08]} 55. Ra5+ {
[%emt 0:00:08]} Kxf4 {[%emt 0:00:05]} 56. Ra4+ {[%emt 0:00:07]} Ke5 {[%emt 0:
00:16]} 57. Ra5+ {[%emt 0:00:08]} Kd4 {[%emt 0:02:07]} 58. Ra4+ {[%emt 0:00:08]
} Kc5 {[%emt 0:00:26]} 59. Rxa3 {[%emt 0:00:04]} b2 {[%emt 0:00:20]} 60. Rb3 {
[%emt 0:02:08]} b1=Q {[%emt 0:00:09]} 61. Rxb1 {[%emt 0:00:05]} Rxb1 {[%emt 0:
00:04]} 62. Kg6 {[%emt 0:00:11]} Kd6 {[%emt 0:00:27]} 63. h5 {[%emt 0:00:09]}
Ke6 {[%emt 0:00:48]} 64. h6 {[%emt 0:00:18]} Rg1+ {[%emt 0:00:13]} 65. Kh7 {
[%emt 0:00:04]} Kf7 {[%emt 0:00:43]} 66. Kh8 {[%emt 0:00:01]} Rg8+ {[%emt 0:00:
11]} 67. Kh7 {[%emt 0:00:00]} Rg6 {[%emt 0:00:09]} 0-1

[Event "ETCC Women 2013"]
[Site "Warsaw"]
[Date "2013.11.15"]
[Round "7"]
[White "Moser, Eva"]
[Black "Sebag, Marie"]
[Result "1/2-1/2"]
[ECO "A06"]
[WhiteElo "2434"]
[BlackElo "2510"]
[PlyCount "81"]
[EventDate "2013.??.??"]
[EventCountry "POL"]
[WhiteTeam "Austria"]
[BlackTeam "France"]
[WhiteTeamCountry "AUT"]
[BlackTeamCountry "FRA"]
[TimeControl "40/5400+30:1800+30"]

1. Nf3 {[%emt 0:00:00]} d5 {[%emt 0:00:00]} 2. g3 {[%emt 0:00:00]} c6 {[%emt 0:
00:02]} 3. Bg2 {[%emt 0:00:00]} Bg4 {[%emt 0:01:38]} 4. O-O {[%emt 0:00:21]}
Nd7 {[%emt 0:03:22]} 5. d3 {[%emt 0:00:21]} e6 {[%emt 0:13:06]} 6. Nbd2 {[%emt
0:02:35]} Bd6 {[%emt 0:02:03]} 7. e4 {[%emt 0:01:20]} Ne7 {[%emt 0:05:43]} 8.
Re1 {[%emt 0:04:44]} O-O {[%emt 0:01:15]} 9. d4 {[%emt 0:00:30]} Bc7 {[%emt 0:
18:12]} 10. c3 {[%emt 0:02:12]} c5 {[%emt 0:07:49]} 11. exd5 {[%emt 0:04:57]}
Nxd5 12. dxc5 {[%emt 0:13:12]} Nxc5 {[%emt 0:01:06]} 13. Nb3 {[%emt 0:00:28]}
Bb6 {[%emt 0:08:40]} 14. Nxc5 {[%emt 0:11:24]} Bxc5 {[%emt 0:01:54]} 15. Qb3 {
[%emt 0:07:00]} Qf6 {[%emt 0:07:54]} 16. c4 {[%emt 0:13:17]} Nb4 {[%emt 0:00:
33]} 17. Be3 {[%emt 0:10:30]} Bxe3 {[%emt 0:07:21]} 18. Rxe3 {[%emt 0:01:25]}
Nc6 {[%emt 0:00:08]} 19. Qxb7 {[%emt 0:02:10]} Rfc8 {[%emt 0:00:18]} 20. Rae1 {
[%emt 0:08:20]} Na5 {[%emt 0:10:24]} 21. Qa6 {[%emt 0:09:12]} Nxc4 {[%emt 0:01:
27]} 22. Rc3 {[%emt 0:02:30]} e5 {[%emt 0:00:47]} 23. Qxf6 {[%emt 0:00:56]}
gxf6 {[%emt 0:00:01]} 24. b3 {[%emt 0:03:42]} Nb6 {[%emt 0:05:26]} 25. Rec1 {
[%emt 0:00:07]} Rxc3 {[%emt 0:00:17]} 26. Rxc3 {[%emt 0:00:01]} Rd8 {[%emt 0:
00:01]} 27. h3 {[%emt 0:01:05]} Be6 {[%emt 0:00:52]} 28. Rc7 {[%emt 0:00:39]}
a5 {[%emt 0:00:29]} 29. Ra7 {[%emt 0:00:25]} Rd5 {[%emt 0:00:46]} 30. Nh2 {
[%emt 0:00:56]} Rc5 {[%emt 0:01:01]} 31. Ng4 {[%emt 0:00:27]} Kg7 {[%emt 0:01:
38]} 32. Ne3 {[%emt 0:00:17]} f5 {[%emt 0:00:50]} 33. Ra6 {[%emt 0:00:15]} f4 {
[%emt 0:00:40]} 34. gxf4 {[%emt 0:01:01]} exf4 {[%emt 0:00:02]} 35. Rxb6 {
[%emt 0:00:14]} fxe3 {[%emt 0:00:00]} 36. fxe3 {[%emt 0:00:07]} Rc1+ {[%emt 0:
00:04]} 37. Kh2 {[%emt 0:00:29]} Rc2 {[%emt 0:00:03]} 38. Kg3 {[%emt 0:00:35]}
Rxa2 {[%emt 0:00:06]} 39. b4 {[%emt 0:01:09]} axb4 {[%emt 0:00:53]} 40. Rxb4 {
[%emt 0:00:00]} Re2 {[%emt 0:00:00]} 41. Kf3 {[%emt 0:02:08]} 1/2-1/2

[Event "ETCC Women 2013"]
[Site "Warsaw"]
[Date "2013.11.15"]
[Round "7"]
[White "Olsarova, Karolina"]
[Black "Vasiliev, Olga"]
[Result "1-0"]
[ECO "B32"]
[WhiteElo "2275"]
[BlackElo "2282"]
[PlyCount "89"]
[EventDate "2013.??.??"]
[EventCountry "POL"]
[WhiteTeam "Czech Republic"]
[BlackTeam "Israel"]
[WhiteTeamCountry "CZE"]
[BlackTeamCountry "ISR"]
[TimeControl "40/5400+30:1800+30"]

1. e4 {[%emt 0:00:00]} c5 {[%emt 0:00:00]} 2. Nf3 {[%emt 0:00:00]} Nc6 {[%emt
0:00:00]} 3. d4 {[%emt 0:00:00]} cxd4 {[%emt 0:00:04]} 4. Nxd4 {[%emt 0:00:00]}
e5 {[%emt 0:00:25]} 5. Nb5 {[%emt 0:00:10]} d6 {[%emt 0:00:09]} 6. N1c3 {[%emt
0:00:11]} a6 {[%emt 0:00:22]} 7. Na3 {[%emt 0:00:08]} b5 {[%emt 0:00:06]} 8.
Nd5 {[%emt 0:00:32]} Nge7 {[%emt 0:00:29]} 9. c4 {[%emt 0:00:39]} Nd4 {[%emt 0:
00:53]} 10. Bd3 {[%emt 0:01:19]} Nxd5 {[%emt 0:02:09]} 11. exd5 {[%emt 0:01:15]
} Be7 {[%emt 0:01:20]} 12. O-O {[%emt 0:00:55]} O-O {[%emt 0:00:46]} 13. cxb5 {
[%emt 0:02:57]} f5 {[%emt 0:01:47]} 14. bxa6 {[%emt 0:00:55]} f4 {[%emt 0:02:
42]} 15. Nc2 {[%emt 0:03:40]} f3 {[%emt 0:09:17]} 16. Nxd4 {[%emt 0:03:01]}
exd4 {[%emt 0:04:09]} 17. g3 {[%emt 0:02:26]} Qd7 {[%emt 0:14:58]} 18. Re1 {
[%emt 0:05:37]} Bd8 {[%emt 0:02:47]} 19. Re4 {[%emt 0:10:48]} Rxa6 {[%emt 0:12:
24]} 20. Bd2 {[%emt 0:20:12]} Rb6 {[%emt 0:07:31]} 21. b3 {[%emt 0:04:08]} Ba6
{[%emt 0:08:30]} 22. Ba5 {[%emt 0:13:34]} Qa7 {[%emt 0:13:32]} 23. Bxb6 {[%emt
0:13:24]} Bxb6 {[%emt 0:00:22]} 24. Bxa6 {[%emt 0:02:54]} Qxa6 {[%emt 0:00:07]}
25. Qf1 {[%emt 0:00:27]} d3 {[%emt 0:04:27]} 26. a4 {[%emt 0:02:36]} Qc8 {
[%emt 0:12:35]} 27. a5 {[%emt 0:06:34]} Ba7 {[%emt 0:00:13]} 28. Rc1 {[%emt 0:
02:44]} Qf5 {[%emt 0:01:13]} 29. Rf4 {[%emt 0:01:09]} Qxd5 {[%emt 0:00:29]} 30.
Rxf8+ {[%emt 0:00:52]} Kxf8 {[%emt 0:00:04]} 31. Rd1 {[%emt 0:01:02]} d2 {
[%emt 0:00:53]} 32. Qc4 {[%emt 0:00:47]} Qxa5 {[%emt 0:00:22]} 33. Qf4+ {[%emt
0:00:14]} Kg8 {[%emt 0:00:35]} 34. Qxd2 {[%emt 0:00:50]} Qb6 {[%emt 0:00:37]}
35. Qd5+ {[%emt 0:00:13]} Kh8 {[%emt 0:00:28]} 36. Qa8+ {[%emt 0:00:41]} Bb8 {
[%emt 0:00:09]} 37. Qxf3 {[%emt 0:00:27]} h6 {[%emt 0:00:29]} 38. Qf8+ {[%emt
0:00:40]} Kh7 {[%emt 0:00:06]} 39. Qf5+ {[%emt 0:00:12]} Kg8 {[%emt 0:00:45]}
40. Re1 {[%emt 0:00:00]} Qc6 {[%emt 0:00:00]} 41. Qe6+ {[%emt 0:04:54]} Kh7 {
[%emt 0:01:37]} 42. Qe4+ {[%emt 0:04:23]} Qxe4 {[%emt 0:00:09]} 43. Rxe4 {
[%emt 0:00:04]} Kg6 {[%emt 0:00:18]} 44. Re8 {[%emt 0:00:28]} Bc7 {[%emt 0:00:
47]} 45. Re7 {[%emt 0:00:14]} 1-0

[Event "ETCC Women 2013"]
[Site "Warsaw"]
[Date "2013.11.15"]
[Round "7"]
[White "Papp, Petra"]
[Black "Pogonina, Natalija"]
[Result "0-1"]
[ECO "C78"]
[WhiteElo "2300"]
[BlackElo "2499"]
[PlyCount "170"]
[EventDate "2013.??.??"]
[EventCountry "POL"]
[WhiteTeam "Hungary"]
[BlackTeam "Russia"]
[WhiteTeamCountry "HUN"]
[BlackTeamCountry "RUS"]
[TimeControl "40/5400+30:1800+30"]

1. e4 {[%emt 0:00:00]} e5 {[%emt 0:00:00]} 2. Nf3 {[%emt 0:00:00]} Nc6 {[%emt
0:00:00]} 3. Bb5 {[%emt 0:00:35]} a6 {[%emt 0:00:00]} 4. Ba4 {[%emt 0:10:26]}
Nf6 5. O-O b5 {[%emt 0:00:00]} 6. Bb3 Bb7 {[%emt 0:00:00]} 7. d3 {[%emt 0:00:
00]} Be7 {[%emt 0:00:25]} 8. a4 {[%emt 0:00:00]} O-O {[%emt 0:01:37]} 9. Re1 {
[%emt 0:00:00]} d6 {[%emt 0:00:32]} 10. Nbd2 {[%emt 0:00:00]} Na5 {[%emt 0:00:
16]} 11. Ba2 {[%emt 0:00:00]} c5 {[%emt 0:00:39]} 12. Nf1 {[%emt 0:00:00]} b4
13. c3 {[%emt 0:00:00]} Rb8 {[%emt 0:03:11]} 14. Ne3 {[%emt 0:08:11]} b3 {
[%emt 0:15:45]} 15. Bb1 {[%emt 0:00:10]} g6 {[%emt 0:00:05]} 16. Nc4 {[%emt 0:
06:47]} Bc8 {[%emt 0:11:41]} 17. Nfd2 {[%emt 0:11:26]} Bg4 {[%emt 0:04:55]} 18.
f3 {[%emt 0:00:28]} Be6 {[%emt 0:00:05]} 19. Ra3 {[%emt 0:04:11]} d5 {[%emt 0:
08:12]} 20. exd5 {[%emt 0:05:39]} Nxd5 {[%emt 0:04:38]} 21. Nxa5 {[%emt 0:09:
30]} Qxa5 {[%emt 0:00:04]} 22. Nc4 {[%emt 0:01:06]} Qc7 {[%emt 0:01:20]} 23.
Rxb3 {[%emt 0:01:48]} Rbd8 {[%emt 0:03:12]} 24. Rxe5 {[%emt 0:13:27]} Bf6 {
[%emt 0:06:23]} 25. Re4 {[%emt 0:01:54]} Bf5 {[%emt 0:05:30]} 26. Qf1 {[%emt 0:
05:10]} Bg7 {[%emt 0:01:47]} 27. Re1 {[%emt 0:01:44]} Bd7 {[%emt 0:11:58]} 28.
Ra3 {[%emt 0:01:39]} Nb6 {[%emt 0:00:22]} 29. Bc2 {[%emt 0:02:27]} Bf5 {[%emt
0:03:07]} 30. Nxb6 {[%emt 0:06:42]} Qxb6 {[%emt 0:00:04]} 31. Qe2 {[%emt 0:01:
36]} Qc6 {[%emt 0:01:54]} 32. Ra1 {[%emt 0:00:52]} Rfe8 {[%emt 0:03:12]} 33.
Be3 {[%emt 0:00:38]} Bh6 {[%emt 0:06:06]} 34. Qf2 {[%emt 0:00:36]} Bxe3 {[%emt
0:00:41]} 35. Rxe3 {[%emt 0:00:02]} Rxe3 {[%emt 0:00:08]} 36. Qxe3 {[%emt 0:00:
07]} c4 {[%emt 0:00:05]} 37. Rd1 {[%emt 0:07:54]} cxd3 {[%emt 0:02:01]} 38.
Bxd3 {[%emt 0:02:24]} Qxa4 {[%emt 0:00:49]} 39. Qe2 {[%emt 0:00:49]} Bxd3 {
[%emt 0:05:48]} 40. Rxd3 {[%emt 0:00:00]} Qa1+ {[%emt 0:00:00]} 41. Kf2 {[%emt
0:01:06]} Rxd3 {[%emt 0:01:44]} 42. Qxd3 {[%emt 0:01:49]} Qxb2+ {[%emt 0:01:36]
} 43. Kf1 {[%emt 0:05:11]} Qb6 {[%emt 0:06:02]} 44. Qe4 {[%emt 0:02:36]} h5 {
[%emt 0:07:13]} 45. Qe8+ {[%emt 0:01:25]} Kg7 {[%emt 0:00:05]} 46. Qe5+ {[%emt
0:00:13]} Kf8 {[%emt 0:04:31]} 47. Qh8+ {[%emt 0:01:45]} Ke7 {[%emt 0:00:04]}
48. Qe5+ {[%emt 0:00:08]} Qe6 {[%emt 0:00:53]} 49. Qc7+ {[%emt 0:01:16]} Kf6 {
[%emt 0:03:09]} 50. Qf4+ {[%emt 0:00:29]} Kg7 {[%emt 0:00:11]} 51. Qd4+ {[%emt
0:00:39]} Qf6 {[%emt 0:00:34]} 52. Qb4 {[%emt 0:05:11]} Qe5 {[%emt 0:00:49]}
53. f4 {[%emt 0:02:31]} Qd5 {[%emt 0:01:05]} 54. c4 {[%emt 0:07:37]} Qd4 {
[%emt 0:04:08]} 55. g3 {[%emt 0:01:00]} h4 {[%emt 0:00:36]} 56. gxh4 {[%emt 0:
05:08]} Qxf4+ {[%emt 0:00:15]} 57. Kg2 {[%emt 0:00:09]} Qg4+ {[%emt 0:00:21]}
58. Kf2 {[%emt 0:00:40]} Qxh4+ {[%emt 0:00:11]} 59. Kg2 {[%emt 0:00:01]} Qg4+ {
[%emt 0:02:15]} 60. Kf2 {[%emt 0:00:11]} Qd4+ {[%emt 0:00:05]} 61. Kg2 {[%emt
0:00:10]} Kf6 {[%emt 0:01:52]} 62. Qa4 {[%emt 0:00:34]} Qd2+ {[%emt 0:01:04]}
63. Kg1 {[%emt 0:00:27]} Qd6 {[%emt 0:00:52]} 64. Kg2 {[%emt 0:00:45]} Kg5 {
[%emt 0:02:42]} 65. Qa5+ {[%emt 0:00:43]} f5 {[%emt 0:01:32]} 66. c5 {[%emt 0:
00:14]} Qd5+ {[%emt 0:00:36]} 67. Kg1 {[%emt 0:00:13]} Qd1+ {[%emt 0:00:34]}
68. Kg2 {[%emt 0:00:22]} Qe2+ {[%emt 0:01:06]} 69. Kg1 {[%emt 0:00:01]} Qd3 {
[%emt 0:00:44]} 70. Qc7 {[%emt 0:01:50]} Qd4+ {[%emt 0:00:33]} 71. Kg2 {[%emt
0:00:13]} Qd5+ {[%emt 0:00:25]} 72. Kg1 {[%emt 0:00:05]} Qd1+ {[%emt 0:00:48]}
73. Kg2 {[%emt 0:00:02]} Qe2+ {[%emt 0:00:10]} 74. Kg1 {[%emt 0:00:04]} f4 {
[%emt 0:00:35]} 75. Qd8+ {[%emt 0:00:53]} Kg4 {[%emt 0:00:34]} 76. Qd7+ {[%emt
0:00:31]} Kh4 {[%emt 0:00:21]} 77. Qh7+ {[%emt 0:02:59]} Kg5 {[%emt 0:00:12]}
78. h4+ {[%emt 0:00:15]} Kf6 {[%emt 0:00:43]} 79. Qh8+ {[%emt 0:00:05]} Kf5 {
[%emt 0:00:40]} 80. Qc8+ {[%emt 0:01:00]} Qe6 {[%emt 0:00:07]} 81. Qf8+ {[%emt
0:01:08]} Kg4 {[%emt 0:00:30]} 82. Kf2 {[%emt 0:00:32]} Qe3+ {[%emt 0:00:33]}
83. Kg2 {[%emt 0:00:28]} f3+ {[%emt 0:00:17]} 84. Kh1 {[%emt 0:00:30]} Qe1+ {
[%emt 0:00:07]} 85. Kh2 {[%emt 0:00:04]} Qf2+ {[%emt 0:00:06] c6 g5+} 0-1

[Event "ETCC Women 2013"]
[Site "Warsaw"]
[Date "2013.11.15"]
[Round "7"]
[White "Puuska, Heini"]
[Black "Fakhiridou, Ekaterini"]
[Result "0-1"]
[ECO "A20"]
[WhiteElo "1982"]
[BlackElo "2168"]
[PlyCount "68"]
[EventDate "2013.??.??"]
[EventCountry "POL"]
[WhiteTeam "Finland"]
[BlackTeam "Greece"]
[WhiteTeamCountry "FIN"]
[BlackTeamCountry "GRE"]
[TimeControl "40/5400+30:1800+30"]

1. c4 {[%emt 0:00:00]} e5 {[%emt 0:00:00]} 2. g3 {[%emt 0:00:00]} d6 {[%emt 0:
00:11]} 3. Bg2 {[%emt 0:00:20]} Nc6 {[%emt 0:00:46]} 4. Nc3 {[%emt 0:01:08]} g6
{[%emt 0:00:19]} 5. e4 {[%emt 0:01:24]} Be6 {[%emt 0:06:17]} 6. d3 {[%emt 0:00:
25]} Qd7 {[%emt 0:00:11]} 7. Be3 {[%emt 0:08:33]} Bg7 {[%emt 0:01:08]} 8. Nge2
{[%emt 0:04:02]} Bh3 {[%emt 0:06:06]} 9. O-O {[%emt 0:00:32]} Bxg2 {[%emt 0:00:
41]} 10. Kxg2 {[%emt 0:00:07]} Nd4 {[%emt 0:01:09]} 11. Bxd4 {[%emt 0:07:55]}
exd4 {[%emt 0:00:08]} 12. Nb5 {[%emt 0:01:16]} c5 {[%emt 0:01:50]} 13. Qa4 {
[%emt 0:05:56]} Kf8 {[%emt 0:02:04]} 14. Qa5 {[%emt 0:01:59]} b6 {[%emt 0:08:
13]} 15. Qa6 {[%emt 0:02:05]} h5 {[%emt 0:06:53]} 16. h3 {[%emt 0:07:16]} Ne7 {
[%emt 0:08:32]} 17. Nf4 {[%emt 0:02:41]} h4 {[%emt 0:09:36]} 18. g4 {[%emt 0:
00:26]} g5 {[%emt 0:00:33]} 19. Nd5 {[%emt 0:01:10]} Nxd5 {[%emt 0:01:24]} 20.
cxd5 {[%emt 0:04:20]} Be5 {[%emt 0:00:53]} 21. a4 {[%emt 0:01:05]} Kg7 {[%emt
0:01:30]} 22. Na3 {[%emt 0:02:18]} Bf4 {[%emt 0:04:29]} 23. Nc4 {[%emt 0:01:20]
} Rhb8 {[%emt 0:05:44]} 24. Qb5 {[%emt 0:02:12]} Qe7 {[%emt 0:00:51]} 25. Qc6 {
[%emt 0:01:30]} Rb7 {[%emt 0:11:06]} 26. Ra3 {[%emt 0:03:16]} Rab8 {[%emt 0:04:
24]} 27. Qb5 {[%emt 0:04:25]} Be5 {[%emt 0:01:42]} 28. a5 {[%emt 0:10:33]} bxa5
{[%emt 0:05:04]} 29. Qxa5 {[%emt 0:00:11]} Rb4 {[%emt 0:02:27]} 30. Qxa7 {
[%emt 0:02:31]} R8b7 {[%emt 0:02:01]} 31. Qa6 {[%emt 0:00:55]} Qf6 {[%emt 0:00:
26]} 32. Ra2 {[%emt 0:04:10]} Qf4 {[%emt 0:00:56]} 33. Rh1 {[%emt 0:02:38]} Rb3
{[%emt 0:01:12]} 34. Ra3 {[%emt 0:01:30]} Rxb2 {[%emt 0:00:08]} 0-1

[Event "ETCC Women 2013"]
[Site "Warsaw"]
[Date "2013.11.15"]
[Round "7"]
[White "Raeva, Elitsa"]
[Black "Kachiani-Gersinska, Ketino"]
[Result "1-0"]
[ECO "D80"]
[WhiteElo "2361"]
[BlackElo "2365"]
[PlyCount "63"]
[EventDate "2013.??.??"]
[EventCountry "POL"]
[WhiteTeam "Bulgaria"]
[BlackTeam "Germany"]
[WhiteTeamCountry "BUL"]
[BlackTeamCountry "GER"]
[TimeControl "40/5400+30:1800+30"]

1. d4 {[%emt 0:00:00]} Nf6 {[%emt 0:00:00]} 2. c4 {[%emt 0:00:00]} g6 {[%emt 0:
00:00]} 3. Nc3 {[%emt 0:00:00]} d5 {[%emt 0:00:00]} 4. Bg5 Ne4 {[%emt 0:04:53]}
5. h4 Nxg5 {[%emt 0:01:49]} 6. hxg5 {[%emt 0:03:34]} dxc4 {[%emt 0:01:16]} 7.
e3 e6 {[%emt 0:06:33]} 8. Nf3 {[%emt 0:03:05]} Be7 {[%emt 0:00:39]} 9. Bxc4 {
[%emt 0:14:42]} Bxg5 {[%emt 0:00:54]} 10. Qb3 {[%emt 0:01:05]} O-O {[%emt 0:09:
27]} 11. d5 {[%emt 0:04:23]} e5 {[%emt 0:09:09]} 12. Rd1 {[%emt 0:17:06]} Bg4 {
[%emt 0:11:16]} 13. d6 {[%emt 0:03:47]} Bxf3 {[%emt 0:03:51]} 14. gxf3 {[%emt
0:01:00]} cxd6 {[%emt 0:08:32]} 15. Qxb7 {[%emt 0:06:56]} Nd7 {[%emt 0:06:47]}
16. Rxd6 {[%emt 0:02:59]} Qc8 {[%emt 0:03:46]} 17. Qe4 {[%emt 0:04:42]} Kg7 {
[%emt 0:12:13]} 18. Qg4 {[%emt 0:02:47]} Bf4 {[%emt 0:06:39]} 19. Ba6 {[%emt 0:
22:08]} Qc5 {[%emt 0:03:48]} 20. Rxd7 {[%emt 0:00:49]} Bxe3 {[%emt 0:00:41]}
21. fxe3 {[%emt 0:01:24]} Qxe3+ {[%emt 0:00:02]} 22. Ne2 {[%emt 0:00:23]} Rab8
{[%emt 0:02:16]} 23. b3 {[%emt 0:00:49]} Rb6 {[%emt 0:00:37]} 24. Bc4 {[%emt 0:
01:03]} Rf6 {[%emt 0:00:53]} 25. Bd5 {[%emt 0:01:16]} Rf5 {[%emt 0:02:50]} 26.
Qe4 {[%emt 0:05:04]} Qb6 {[%emt 0:00:12]} 27. Rg1 {[%emt 0:01:19]} Rh5 {[%emt
0:01:12]} 28. Rb7 {[%emt 0:00:42]} Qf6 {[%emt 0:02:25]} 29. Rxa7 {[%emt 0:00:
28]} Rh2 {[%emt 0:00:18]} 30. Rb7 {[%emt 0:00:40]} h5 {[%emt 0:00:37]} 31. a4 {
[%emt 0:00:30]} Rh4 {[%emt 0:00:37]} 32. Rxg6+ {[%emt 0:00:49]} 1-0